bitfinex-derivatives/quotes_ETHF0:USTF0_20251003
["timestamp","ask_amount","ask_price","bid_price","bid_amount"]
[1759496784078,3.71070531,4463.6,4463.5,0.94301]
[1759496784682,0.50290531,4463.6,4463.5,4.55375]
[1759496785272,0.50290531,4463.6,4463.5,9.55375]
[1759496785471,3.2078,4464.7,4463.6,1.00734]
[1759496785678,3.2078,4464.7,4464.6,0.3052]
[1759496785983,3.2078,4464.7,4464.6,0.81161]
[1759496786180,3.2078,4464.7,4464.6,0.5292]
[1759496786481,3.20938101,4464.7,4464.6,0.3052]
[1759496787481,3.20938101,4464.7,4464.6,0.5292]
[1759496787884,3.20938101,4464.7,4464.6,0.3052]
[1759496788083,3.20938101,4464.7,4464.6,0.5292]
[1759496788479,1.59245076,4465.6,4464.6,8.737]
[1759496788677,0.40275,4465.7,4465.2,0.3094]
[1759496788877,0.3368,4465.5,4465.3,0.73041]
[1759496789376,0.3368,4465.5,4465.3,0.224]
[1759496789577,0.742226,4465.5,4465.1,0.3094]
[1759496789781,0.40278,4465.4,4465.3,0.50641]
[1759496790175,0.002656,4465.5,4465.3,0.3094]
[1759496790475,0.40269,4466.4,4465.6,0.3094]
[1759496790674,0.40271,4466.2,4465.9,0.50641]
[1759496790975,0.3368,4466.0,4464.5,0.1246]
[1759496791176,3.5446,4465.9,4465.0,0.3094]
[1759496791375,0.3368,4465.8,4465.5,0.42344005]
[1759496791580,0.3368,4465.8,4465.6,0.224]
[1759496791879,3.21063282,4465.9,4465.6,0.224]
[1759496792281,0.3055,4465.8,4465.6,0.224]
[1759496792479,3.51613282,4465.9,4465.6,0.224]
[1759496792875,3.51613282,4465.9,4465.2,3.21007676]
[1759496793080,3.51613282,4465.9,4465.7,0.224]
[1759496793277,0.3055,4465.8,4465.6,0.224]
[1759496794578,0.3055,4465.8,4465.2,3.21007676]
[1759496794878,0.70824,4465.8,4465.6,0.3201]
[1759496795882,0.40274,4465.8,4465.6,0.3201]
[1759496796083,0.40274,4465.8,4465.7,0.3201]
[1759496796883,0.40274,4465.8,4465.7,0.5441]
[1759496797379,0.00283282,4465.9,4465.8,0.3201]
[1759496797578,0.49441002,4465.9,4465.8,0.74354005]
[1759496797782,0.49441002,4465.9,4465.8,0.3201]
[1759496798486,0.49441002,4465.9,4465.8,5.3201]
[1759496798984,0.49441002,4465.9,4465.8,0.3201]
[1759496799186,0.49441002,4465.9,4465.8,0.5441]
[1759496799984,0.49441002,4465.9,4465.8,0.3201]
[1759496800183,0.49441002,4465.9,4465.8,0.5441]
[1759496801489,0.00283282,4465.9,4465.8,5.5441]
[1759496802089,0.3055,4467.3,4465.8,5.5441]
[1759496802286,0.49115636,4467.2,4466.5,4.08094005]
[1759496802585,0.3055,4467.0,4466.6,0.224]
[1759496802783,0.49115636,4466.9,4466.6,0.224]
[1759496802980,0.49115636,4466.8,4466.7,0.3201]
[1759496803180,0.49292845,4466.8,4466.7,0.3201]
[1759496803380,0.00177209,4466.8,4466.7,0.3201]
[1759496804391,0.00177209,4466.8,4466.7,0.5441]
[1759496804887,0.40266,4466.7,4466.5,3.2078]
[1759496805092,0.40271,4466.2,4465.9,3.2078]
[1759496805292,0.4027,4466.2,4466.0,0.42344005]
[1759496805489,0.3055,4466.0,4465.9,3.2078]
[1759496805891,0.40275,4465.7,4465.3,3.5279]
[1759496806094,0.40275,4465.7,4465.5,0.42344005]
[1759496806095,0.3055,4465.6,4465.5,0.42344005]
[1759496806285,0.70826,4465.5,4465.3,3.2078]
[1759496806482,0.3055,4465.4,4465.3,3.2078]
[1759496806886,0.48767616,4465.4,4465.3,0.224]
[1759496807091,0.48767616,4465.4,4465.2,0.00227676]
[1759496807092,0.3055,4465.3,4465.2,0.00227676]
[1759496807294,0.79317616,4465.3,4465.2,0.22627676]
[1759496807589,5.79317616,4465.3,4465.2,0.00227676]
[1759496807788,0.3055,4465.2,4464.8,3.2078]
[1759496807997,0.1121,4465.0,4464.9,0.224]
[1759496808192,0.5998124,4465.0,4464.3,3.2078]
[1759496808393,0.8905324,4464.9,4464.7,0.224]
[1759496808593,0.3055,4464.4,4464.3,3.2078]
[1759496808893,0.3055,4464.4,4464.3,3.43412275]
[1759496809090,0.3055,4464.4,4464.3,3.21012275]
[1759496809295,0.79337959,4464.4,4464.3,0.22632275]
[1759496809488,0.79337959,4464.4,4464.3,0.00232275]
[1759496809696,0.79337959,4464.4,4464.3,0.22632275]
[1759496810288,0.79337959,4464.4,4464.3,0.00232275]
[1759496811293,5.79337959,4464.4,4464.3,0.00232275]
[1759496812694,0.79337959,4464.4,4464.3,0.00232275]
[1759496812890,0.48787959,4464.4,4464.3,0.32242275]
[1759496813094,0.79337959,4464.4,4464.3,0.00232275]
[1759496815498,0.48787959,4464.4,4464.3,0.32242275]
[1759496815798,0.40286,4464.5,4464.3,0.00232275]
[1759496816097,0.40286,4464.5,4464.4,0.3201]
[1759496816489,0.70836,4464.5,4464.4,0.3201]
[1759496817703,3.61065,4464.6,4464.3,0.00232275]
[1759496818001,0.40286,4464.5,4464.4,0.3201]
[1759496820296,0.40281,4465.0,4464.6,0.3201]
[1759496820497,3.2078,4465.7,4465.0,0.1296]
[1759496820688,0.40277,4465.4,4465.2,0.3201]
[1759496820893,0.3055,4465.3,4465.2,0.3201]
[1759496821192,0.40279,4465.2,4465.0,0.3201]
[1759496821400,3.2078,4465.7,4465.1,0.224]
[1759496821597,1.70455076,4467.0,4465.7,0.3201]
[1759496821598,0.40273,4465.9,4465.7,0.3201]
[1759496821900,0.40273,4465.9,4465.8,0.5441]
[1759496822096,0.40271,4466.1,4465.8,0.96754005]
[1759496822298,0.00177209,4466.8,4466.2,0.7148]
[1759496822602,0.40266,4466.7,4466.3,0.224]
[1759496822803,0.00177209,4466.8,4466.5,0.3121]
[1759496822995,0.00177209,4466.8,4466.6,0.3121]
[1759496823198,0.00177209,4466.8,4466.7,0.5091]
[1759496823400,0.00177209,4466.8,4466.7,1.33520005]
[1759496824293,0.00177209,4466.8,4466.7,6.33520005]
[1759496824501,3.2078,4467.5,4467.3,0.4026]
[1759496824698,3.2078,4467.5,4467.4,0.95954005]
[1759496825207,0.022,4467.9,4467.5,0.53118]
[1759496825398,0.02399089,4467.9,4467.8,0.73554005]
[1759496825797,0.02399089,4467.9,4467.8,0.3121]
[1759496825996,0.02399089,4467.9,4467.8,0.5361]
[1759496830406,0.02399089,4467.9,4467.5,0.13131525]
[1759496830407,0.40257,4467.6,4467.5,0.13131525]
[1759496830602,0.71237,4467.6,4467.5,0.00271525]
[1759496832599,0.40257,4467.6,4467.5,0.00271525]
[1759496832807,0.3098,4467.6,4467.5,0.22671525]
[1759496833200,0.3098,4467.6,4467.5,0.00271525]
[1759496833401,0.3098,4467.6,4467.5,0.22671525]
[1759496833706,0.3098,4467.6,4467.5,0.00271525]
[1759496836903,0.3098,4467.6,4467.5,0.31481525]
[1759496837811,0.40257,4467.7,4467.6,0.3121]
[1759496838006,0.40257,4467.7,4467.6,0.73554005]
[1759496838312,3.2078,4467.8,4467.6,0.5361]
[1759496838505,3.2078,4467.8,4467.7,0.3121]
[1759496838713,3.2078,4467.8,4467.7,0.73554005]
[1759496839806,3.5176,4467.8,4467.7,0.224]
[1759496840002,0.3098,4467.6,4467.5,0.00271525]
[1759496840213,0.3098,4467.6,4467.5,0.22671525]
[1759496840612,0.3098,4467.6,4467.5,0.9622553]
[1759496841110,0.40257,4467.7,4467.6,0.3121]
[1759496841407,0.40257,4467.7,4467.6,0.95954005]
[1759496841714,0.40257,4467.7,4467.6,0.5361]
[1759496841917,3.61036,4467.8,4467.6,0.5361]
[1759496842210,3.92016,4467.8,4467.7,0.73554005]
[1759496843407,3.92016,4467.8,4467.7,0.95954005]
[1759496843605,3.61036,4467.8,4467.7,0.95954005]
[1759496843808,0.40256,4467.8,4467.7,0.95954005]
[1759496844313,0.02399089,4467.9,4467.8,0.3121]
[1759496844513,0.02399089,4467.9,4467.8,0.73554005]
[1759496844813,0.02399089,4467.9,4467.8,0.3121]
[1759496846920,0.42654089,4467.9,4467.8,0.3121]
[1759496847114,0.02399089,4467.9,4467.8,0.93866]
[1759496847621,0.42654089,4467.9,4467.8,0.93866]
[1759496848318,0.02399089,4467.9,4467.8,0.93866]
[1759496849512,0.42654089,4467.9,4467.8,0.5361]
[1759496850914,0.42654089,4467.9,4467.8,0.93866]
[1759496851114,0.42654089,4467.9,4467.8,0.5361]
[1759496851318,0.42654089,4467.9,4467.8,0.93866]
[1759496851918,0.42654089,4467.9,4467.8,0.955]
[1759496852113,0.91640511,4467.9,4467.8,0.955]
[1759496852313,0.51385511,4467.9,4467.8,1.35756]
[1759496852515,0.91640511,4467.9,4467.8,1.35756]
[1759496852719,0.02399089,4467.9,4467.8,6.35756]
[1759496853119,0.02399089,4467.9,4467.8,0.955]
[1759496853120,0.64904089,4467.9,4467.8,0.955]
[1759496853316,0.02399089,4467.9,4467.8,1.35756]
[1759496854415,0.02399089,4467.9,4467.8,6.35756]
[1759496854719,0.40248,4468.7,4468.6,0.7305]
[1759496854918,0.40248,4468.7,4468.6,0.9545]
[1759496855223,0.48997709,4468.7,4468.6,0.9545]
[1759496855715,0.49242189,4468.7,4468.6,0.9545]
[1759496856122,0.71492189,4468.7,4468.6,0.9545]
[1759496856817,0.3334,4468.6,4468.0,0.1276]
[1759496857018,0.4025,4468.4,4468.1,0.9545]
[1759496857219,0.48997709,4468.3,4468.2,0.7305]
[1759496857718,0.48997709,4468.3,4468.2,1.15394005]
[1759496857925,1.33952,4469.1,4468.2,1.15394005]
[1759496857926,0.3334,4469.4,4469.2,0.70813]
[1759496858121,0.5559,4469.4,4469.3,1.07224005]
[1759496858425,0.7755,4469.4,4469.3,0.4448]
[1759496858924,0.77750868,4469.4,4469.3,0.4448]
[1759496859320,0.00200868,4469.4,4469.3,0.9545]
[1759496859721,0.00200868,4469.4,4469.3,0.7305]
[1759496859923,0.33540868,4469.4,4469.3,0.9545]
[1759496860119,0.00200868,4469.4,4469.3,0.9545]
[1759496862525,0.00200868,4469.4,4469.3,9.1623]
[1759496862731,0.00200868,4469.4,4469.3,4.1623]
[1759496862923,0.00200868,4469.4,4469.3,9.1623]
[1759496863329,0.3334,4470.2,4469.3,9.1623]
[1759496863330,0.3334,4470.2,4470.1,0.4248]
[1759496863632,0.5559,4470.2,4470.1,1.07224005]
[1759496863826,0.5559,4470.2,4470.1,0.9545]
[1759496863827,0.3334,4470.2,4470.1,0.9545]
[1759496864030,3.2078,4470.9,4470.1,0.9545]
[1759496864031,0.73574,4470.3,4470.1,0.9545]
[1759496864220,0.33533632,4470.3,4470.2,0.84824005]
[1759496864626,0.33533632,4470.3,4470.2,1.15394005]
[1759496865334,0.00193632,4470.3,4470.2,1.15394005]
[1759496866033,0.77743632,4470.3,4470.2,0.64744005]
[1759496866728,1.78328632,4470.3,4469.8,3.2078]
[1759496866934,1.78328632,4470.3,4468.8,3.2078]
[1759496866935,1.44814,4469.4,4468.8,3.2078]
[1759496867127,1.17793,4469.2,4469.1,0.42344005]
[1759496867326,1.17793,4469.2,4469.1,0.64424005]
[1759496867629,1.17793,4469.2,4469.1,0.2208]
[1759496868028,0.7755,4469.2,4469.1,0.2208]
[1759496868227,0.7755,4469.2,4469.1,0.224]
[1759496868428,1.17793,4469.2,4469.1,0.224]
[1759496868628,0.95836,4468.9,4468.8,3.6326]
[1759496868928,0.95836,4468.9,4468.8,3.8566]
[1759496869330,0.95836,4468.9,4468.8,3.6326]
[1759496869533,1.17796,4468.9,4468.8,3.6326]
[1759496869725,0.95841,4468.3,4468.2,0.4248]
[1759496869927,0.5559,4468.0,4467.9,0.4248]
[1759496870235,0.3334,4468.0,4467.9,1.07224005]
[1759496870433,0.40253,4468.1,4467.9,1.07224005]
[1759496870634,0.73593,4468.2,4468.0,1.15394005]
[1759496870834,0.73593,4468.2,4468.1,0.84824005]
[1759496871234,0.5559,4468.2,4468.1,0.4248]
[1759496871438,0.40251,4468.4,4468.1,0.4248]
[1759496871439,0.3334,4468.4,4468.1,0.4248]
[1759496871638,0.3334,4468.4,4468.3,0.84824005]
[1759496871841,0.3334,4468.4,4468.3,1.07224005]
[1759496872040,0.3334,4468.4,4468.3,0.6488]
[1759496872041,0.81873565,4468.4,4468.3,0.6488]
[1759496872540,0.5559,4468.4,4468.3,0.6488]
[1759496872932,0.40251,4468.3,4467.6,0.3057]
[1759496873131,0.95846,4467.8,4467.7,0.2208]
[1759496873337,0.95846,4467.8,4467.7,0.4448]
[1759496873737,0.40257,4467.6,4467.5,0.00271525]
[1759496873937,0.73597,4467.6,4467.5,0.00271525]
[1759496874132,0.73597,4467.6,4467.5,0.22671525]
[1759496875333,0.73597,4467.6,4467.5,0.00271525]
[1759496875734,0.1227,4465.0,4464.9,1.55565829]
[1759496875939,0.1227,4465.0,4464.2,1.55565829]
[1759496875940,3.3305,4465.0,4464.2,1.55565829]
[1759496876241,3.3305,4465.0,4464.5,0.42344005]
[1759496876740,3.21054952,4465.0,4464.5,0.13024661]
[1759496876941,0.00274952,4465.0,4464.9,0.42344005]
[1759496877143,0.40282,4464.9,4464.5,0.13024661]
[1759496877442,0.73622,4464.9,4464.6,0.224]
[1759496877742,0.3334,4464.8,4464.7,0.3057]
[1759496878234,0.3334,4464.8,4464.7,0.95314005]
[1759496879041,0.3334,4464.8,4464.7,0.64744005]
[1759496879242,0.3334,4464.8,4464.7,0.42344005]
[1759496879442,0.3334,4464.8,4464.7,0.64744005]
[1759496879738,0.3334,4464.6,4464.5,0.00264661]
[1759496880130,0.3334,4464.6,4464.5,0.42608666]
[1759496880440,3.66664952,4465.0,4464.7,0.3057]
[1759496880635,3.54394952,4465.0,4464.9,0.72914005]
[1759496880831,0.1227,4464.0,4462.5,0.4333]
[1759496881035,0.1227,4464.0,4462.6,0.40302]
[1759496881036,0.3334,4463.0,4462.6,0.40302]
[1759496881237,0.3334,4463.0,4462.5,0.3057]
[1759496881538,0.4561,4463.0,4462.2,0.122]
[1759496881735,0.4561,4463.0,4462.9,0.0248039]
[1759496884945,3.5166,4463.1,4462.9,0.7438939]
[1759496885137,0.3088,4463.0,4462.9,0.7438939]
[1759496886034,0.3088,4463.0,4462.9,0.3409039]
[1759496886440,0.3088,4463.0,4462.9,0.0248039]
[1759496886637,0.3088,4463.0,4462.9,0.6518039]
[1759496886838,0.3088,4463.0,4462.9,0.0248039]
[1759496887044,0.3088,4463.0,4462.9,0.3409039]
[1759496887741,3.2078,4463.1,4463.0,0.40299]
[1759496887940,3.2078,4463.1,4463.0,0.71909]
[1759496889437,3.2078,4463.1,4463.0,0.5401]
[1759496889741,0.3088,4464.0,4463.0,5.6617]
[1759496889941,3.2078,4463.8,4463.6,0.40293]
[1759496890146,1.00699,4465.2,4463.8,0.3161]
[1759496890147,0.3088,4464.3,4463.8,0.3161]
[1759496890443,3.61067,4464.4,4464.1,0.71898]
[1759496890645,0.3088,4464.3,4464.1,0.40288]
[1759496890937,0.40288,4464.2,4464.1,0.3161]
[1759496891143,0.71168,4464.2,4464.1,0.3161]
[1759496891346,0.3088,4464.2,4464.1,0.3161]
[1759496891539,3.2078,4464.4,4464.3,0.3161]
[1759496892242,0.71164,4464.7,4464.4,0.40286]
[1759496892442,0.71164,4464.7,4464.5,0.71895]
[1759496893037,0.71164,4464.7,4464.6,0.3161]
[1759496893243,0.3088,4464.7,4464.6,0.3161]
[1759496893845,0.5345,4464.0,4463.9,0.224]
[1759496894041,4.34666,4464.0,4462.9,35.2839039]
[1759496894339,4.34666,4464.0,4463.4,0.40295]
[1759496894340,0.40294,4463.6,4463.4,0.40295]
[1759496894645,0.40294,4463.6,4463.5,0.3161]
[1759496894844,3.5166,4464.0,4463.8,0.40291]
[1759496895044,3.9195,4464.0,4463.9,0.224]
[1759496895244,0.71173,4463.7,4463.6,0.3161]
[1759496895545,3.2078,4464.0,4463.6,0.62693]
[1759496895734,0.40293,4463.7,4463.5,0.40294]
[1759496895939,0.40294,4463.6,4463.4,0.40295]
[1759496896140,0.3088,4463.5,4463.4,0.40295]
[1759496896340,0.3088,4463.5,4463.4,0.62695]
[1759496896847,0.3088,4463.5,4463.4,0.94305]
[1759496897748,3.3394,4464.0,4463.9,0.71901]
[1759496897749,3.5166,4464.0,4463.9,0.71901]
[1759496898047,3.2078,4464.0,4463.9,0.71901]
[1759496898442,3.2078,4464.0,4463.9,5.71901]
[1759496898945,0.4029,4464.1,4464.0,0.4377]
[1759496899146,0.40288,4464.3,4464.1,0.71899]
[1759496899345,0.71168,4464.3,4464.2,0.3161]
[1759496899540,0.40286,4464.5,4464.3,0.40287]
[1759496899946,3.2078,4464.6,4464.5,0.40285]
[1759496900253,3.2078,4464.6,4464.3,0.3161]
[1759496900549,0.40288,4464.2,4464.1,0.3161]
[1759496900946,0.3088,4464.5,4464.1,5.0]
[1759496901148,0.40286,4464.4,4464.1,0.3161]
[1759496901447,0.40286,4464.4,4464.0,0.3456]
[1759496901448,0.40286,4464.4,4464.3,0.40287]
[1759496901642,0.40285,4464.5,4464.3,0.40287]
[1759496901838,0.3088,4464.5,4464.0,0.1216]
[1759496902044,0.40295,4463.5,4463.4,0.40295]
[1759496902348,0.40296,4463.4,4463.1,0.3161]
[1759496902550,0.3088,4463.3,4463.2,0.5401]
[1759496902749,0.3088,4463.3,4463.2,0.94307]
[1759496902947,0.1316,4464.0,4463.5,0.40294]
[1759496903147,0.3088,4463.9,4463.5,0.40294]
[1759496903349,0.1316,4464.0,4463.5,0.40294]
[1759496903642,0.40298,4463.2,4463.1,0.40298]
[1759496903847,0.71178,4463.2,4463.1,0.94308]
[1759496904052,0.3088,4463.2,4463.1,0.94308]
[1759496904345,0.71177,4463.2,4463.1,0.224]
[1759496904545,0.71177,4463.2,4462.9,0.0248039]
[1759496904546,0.84339,4463.0,4462.9,0.0248039]
[1759496904747,4.05119,4463.0,4462.9,0.0248039]
[1759496904952,4.05119,4463.0,4462.9,0.2488039]
[1759496905146,4.54782482,4463.0,4462.9,0.2488039]
[1759496905846,0.49663482,4463.0,4462.9,0.5649039]
[1759496906349,0.82043482,4463.0,4462.9,0.5649039]
[1759496906744,0.94693482,4463.0,4462.9,0.2488039]
[1759496909643,0.94693482,4463.0,4462.9,0.0248039]
[1759496909848,0.94693482,4463.0,4462.9,0.2488039]
[1759496910250,0.94693482,4463.0,4462.9,0.0248039]
[1759496910554,0.94693482,4463.0,4462.9,0.2488039]
[1759496911443,0.94693482,4463.0,4462.9,0.0248039]
[1759496911647,0.94693482,4463.0,4462.9,0.2488039]
[1759496912059,1.38003482,4463.0,4462.9,0.2488039]
[1759496912752,1.78302482,4463.0,4462.9,0.2488039]
[1759496914353,1.78302482,4463.0,4462.9,0.0248039]
[1759496914654,1.78302482,4463.0,4462.9,0.2488039]
[1759496915053,1.78302482,4463.0,4462.9,0.0248039]
[1759496915245,0.4258,4462.1,4461.9,0.40309]
[1759496915553,0.7389,4462.0,4461.9,0.61319]
[1759496915951,0.7389,4462.0,4461.9,1.15249]
[1759496916254,1.14198,4462.0,4461.9,1.15410399]
[1759496916750,1.14198,4462.0,4461.9,0.21171399]
[1759496916955,1.26758,4462.0,4461.9,0.83880399]
[1759496917156,1.26758,4462.0,4461.9,0.61480399]
[1759496917354,1.26758,4462.0,4461.9,0.83880399]
[1759496917756,1.26758,4462.0,4461.9,1.15410399]
[1759496918254,1.14198,4462.0,4461.9,1.15410399]
[1759496919058,1.26758,4462.0,4461.9,0.43571399]
[1759496919258,1.26758,4462.0,4461.9,0.00161399]
[1759496919659,1.76417197,4462.0,4461.9,0.00161399]
[1759496920448,6.76417197,4462.0,4461.9,0.00161399]
[1759496922250,1.76417197,4462.0,4461.9,0.00161399]
[1759496922455,1.76417197,4462.0,4461.9,0.52701399]
[1759496922659,1.76417197,4462.0,4461.9,0.21171399]
[1759496922857,0.40317,4461.1,4460.9,3.2078]
[1759496923158,0.4258,4459.4,4459.3,3.82122]
[1759496923349,0.1256,4460.5,4460.1,0.5254]
[1759496923350,3.4142,4460.2,4460.1,0.5254]
[1759496923654,3.9467,4460.2,4460.1,0.5254]
[1759496924059,3.94895544,4460.2,4460.1,0.97241806]
[1759496924855,3.41645544,4460.2,4460.1,0.97241806]
[1759496925163,3.21005544,4460.2,4460.1,0.97241806]
[1759496925357,3.94895544,4460.2,4460.1,0.00281806]
[1759496925558,3.94895544,4460.2,4460.1,0.22681806]
[1759496926259,0.40326,4460.0,4459.3,3.2078]
[1759496926558,0.40326,4460.0,4459.5,0.3153]
[1759496926559,0.4387,4460.0,4459.5,0.3153]
[1759496926759,3.21005544,4460.2,4459.5,0.3153]
[1759496926760,3.21005544,4460.2,4459.5,0.125]
[1759496926962,3.52315544,4460.2,4459.6,0.3153]
[1759496927152,0.40328,4459.8,4459.6,0.3153]
[1759496927462,0.40328,4459.8,4459.7,0.3153]
[1759496928257,0.40328,4459.8,4459.6,0.00230625]
[1759496928458,0.3131,4459.7,4459.6,0.00230625]
[1759496928761,0.3131,4459.7,4459.6,0.22630625]
[1759496928958,0.3131,4459.7,4459.6,0.00230625]
[1759496929161,0.3131,4459.7,4459.6,0.31760625]
[1759496929359,0.7389,4459.7,4459.6,0.00230625]
[1759496929561,0.7389,4459.7,4459.6,0.22630625]
[1759496930058,0.7389,4459.7,4459.6,0.75170625]
[1759496930272,0.7389,4459.7,4459.6,0.97190625]
[1759496930453,0.7389,4459.7,4459.3,3.61112]
[1759496930454,0.2194,4459.7,4459.3,3.2078]
[1759496930653,0.2194,4459.7,4458.8,0.2101]
[1759496930654,0.7389,4458.9,4458.8,0.2101]
[1759496930860,0.3131,4458.7,4458.4,0.7187]
[1759496931065,0.3131,4458.7,4458.6,0.28132903]
[1759496931261,0.3131,4458.7,4458.6,0.05732903]
[1759496931468,3.5209,4458.7,4458.6,0.05974405]
[1759496931669,3.5209,4458.7,4458.6,0.28374405]
[1759496931867,3.5209,4458.7,4458.6,0.05974405]
[1759496932068,8.5209,4458.7,4458.6,0.05974405]
[1759496932472,3.5209,4458.7,4458.6,0.05974405]
[1759496934167,3.2078,4458.7,4458.6,0.37504405]
[1759496934558,3.2078,4459.2,4458.8,0.3153]
[1759496934863,3.2078,4459.2,4459.1,0.71864]
[1759496935065,3.2078,4459.2,4459.1,0.5393]
[1759496936263,0.3131,4459.7,4459.6,0.3153]
[1759496937068,0.3131,4459.7,4459.6,0.224]
[1759496937465,0.71639,4459.7,4459.5,0.4033]
[1759496937667,0.3131,4459.6,4459.5,0.7186]
[1759496937867,0.40328,4459.9,4459.7,0.40328]
[1759496938163,0.3131,4459.8,4459.7,0.71858]
[1759496938968,0.3131,4460.1,4459.9,0.40326]
[1759496939271,0.5195,4460.1,4460.0,0.5254]
[1759496939470,0.2064,4460.1,4460.0,0.7456]
[1759496939673,0.00225544,4460.2,4460.1,1.14885]
[1759496939971,0.00225544,4460.2,4460.1,1.37285]
[1759496940171,0.20865544,4460.2,4460.1,1.37285]
[1759496940464,0.00225544,4460.2,4460.1,6.37285]
[1759496940864,0.00225544,4460.2,4460.1,5.7456]
[1759496941071,0.3131,4460.1,4460.0,0.40326]
[1759496941273,0.00225544,4460.2,4460.1,0.3153]
[1759496941572,0.00225544,4460.2,4460.1,0.7456]
[1759496941971,0.00225544,4460.2,4460.1,1.14885]
[1759496942165,0.2177,4459.8,4459.7,0.83138]
[1759496942366,0.32765544,4460.2,4460.1,0.40325]
[1759496942571,0.3254,4461.1,4460.2,0.3319]
[1759496942874,0.7555,4460.7,4460.6,0.76]
[1759496943074,0.4301,4460.7,4460.6,0.76]
[1759496943274,3.9633,4460.7,4460.1,0.3319]
[1759496943472,0.7555,4460.2,4460.1,0.5547]
[1759496943777,0.75789162,4460.2,4460.1,0.7787]
[1759496944977,0.43249162,4460.2,4460.1,0.984]
[1759496945373,0.75789162,4460.2,4460.1,0.984]
[1759496945771,0.75789162,4460.2,4460.1,0.2228]
[1759496945972,0.75789162,4460.2,4459.7,0.3319]
[1759496945973,1.15878,4459.8,4459.7,0.2228]
[1759496946173,0.62101,4459.4,4459.3,0.76]
[1759496946373,3.82881,4459.4,4459.3,0.984]
[1759496946670,3.82881,4459.4,4459.3,0.76]
[1759496947071,3.82881,4459.4,4459.3,0.984]
[1759496947872,0.3254,4459.8,4459.6,0.4281]
[1759496948072,0.62098,4459.8,4459.7,0.76]
[1759496948769,0.40326,4460.0,4459.9,1.16326]
[1759496948972,0.40326,4460.1,4460.0,0.882]
[1759496949572,0.00239162,4460.2,4460.1,1.16325]
[1759496949878,0.00239162,4460.2,4460.1,1.38725]
[1759496951675,0.00239162,4460.2,4460.1,6.38725]
[1759496953380,0.40315,4461.2,4461.1,0.4281]
[1759496953680,0.40315,4461.2,4461.1,1.38716]
[1759496953681,0.2177,4461.2,4461.1,1.38716]
[1759496953880,3.2078,4461.3,4461.2,0.76]
[1759496954474,0.00273942,4461.3,4461.2,0.76]
[1759496954676,0.75823942,4461.3,4461.2,0.7787]
[1759496954979,0.75823942,4461.3,4461.2,0.984]
[1759496955189,0.00273942,4461.3,4461.2,0.984]
[1759496956585,0.00273942,4461.3,4461.2,5.984]
[1759496956785,0.00273942,4461.3,4461.2,5.76]
[1759496957083,3.2078,4461.8,4461.7,0.76]
[1759496957385,3.2078,4461.8,4461.7,1.38711]
[1759496957978,3.7509,4462.4,4462.3,1.16305]
[1759496958178,3.75302898,4462.4,4462.3,1.38896115]
[1759496958781,3.20992898,4462.4,4462.3,1.38896115]
[1759496958983,0.00212898,4462.4,4462.3,1.38896115]
[1759496961482,0.00212898,4462.4,4462.3,1.16496115]
[1759496961682,0.00212898,4462.4,4462.3,1.38896115]
[1759496964077,3.2078,4463.5,4463.4,0.2228]
[1759496964277,0.3254,4463.1,4462.6,0.3319]
[1759496964584,0.7555,4462.9,4462.8,0.95771]
[1759496964787,0.7555,4462.9,4462.8,0.7787]
[1759496964982,0.7555,4462.9,4462.8,0.76]
[1759496965186,0.75826406,4462.9,4462.8,0.984]
[1759496966687,0.00276406,4462.9,4462.8,0.984]
[1759496967086,0.00276406,4462.9,4462.8,1.38701]
[1759496967884,0.61753,4463.6,4463.5,0.83444]
[1759496968083,0.428,4463.6,4463.5,0.2159]
[1759496968286,0.428,4463.6,4463.5,1.52634]
[1759496968587,0.2146,4463.6,4463.5,1.52634]
[1759496968785,0.21698993,4463.6,4463.5,1.52634]
[1759496968986,0.00238993,4463.6,4463.5,1.52634]
[1759496969479,0.00238993,4463.6,4463.5,1.30234]
[1759496969685,0.00238993,4463.6,4463.5,1.52634]
[1759496972290,0.40294,4463.5,4463.3,35.2861]
[1759496972491,1.13164,4463.5,4463.4,0.224]
[1759496972684,1.13164,4463.5,4463.3,34.959]
[1759496972685,0.82814,4463.5,4463.3,35.36196]
[1759496972888,1.13164,4463.5,4463.4,0.224]
[1759496973285,1.13164,4463.5,4463.4,0.4329]
[1759496973485,0.61152993,4463.6,4463.5,1.27394]
[1759496973684,1.13402993,4463.6,4463.5,0.224]
[1759496974086,0.73108993,4463.6,4463.3,34.959]
[1759496974387,0.82818,4463.1,4463.0,0.536]
[1759496974588,0.2062,4463.1,4463.0,1.095]
[1759496974992,3.2078,4463.4,4463.3,0.40296]
[1759496975191,3.2078,4463.4,4463.3,0.76]
[1759496975192,4.33945,4463.4,4463.3,0.76]
[1759496975392,0.7287,4463.0,4462.9,0.536]
[1759496975590,0.7287,4463.0,4462.9,0.76]
[1759496975784,0.7287,4463.0,4462.9,0.536]
[1759496975985,0.7287,4463.0,4462.9,0.76]
[1759496976392,0.7287,4463.0,4462.9,0.971]
[1759496976591,0.4252,4463.0,4462.9,0.971]
[1759496976986,0.7287,4463.0,4462.9,0.76]
[1759496977789,0.7287,4463.0,4462.9,0.971]
[1759496979697,3.2078,4463.4,4463.3,0.747]
[1759496979887,3.2078,4463.4,4463.3,0.971]
[1759496980088,3.81695,4463.4,4463.3,1.37396]
[1759496980792,4.03595,4463.4,4463.3,1.37396]
[1759496980993,3.61075,4463.4,4463.3,0.971]
[1759496981293,3.61075,4463.4,4463.3,1.37396]
[1759496981489,3.81695,4463.4,4463.3,1.37396]
[1759496981891,3.81695,4463.4,4463.3,0.971]
[1759496982288,3.81695,4463.4,4463.3,1.37396]
[1759496982896,3.414,4463.4,4463.3,1.37396]
[1759496983090,0.00238993,4463.6,4463.5,1.27394]
[1759496983793,0.20858993,4463.6,4463.5,1.27394]